[Event "51st La Roda Open 2025"]
[Site "La Roda"]
[Date "2025.04.16"]
[Round "3.9"]
[White "Yordanov, Lachezar"]
[Black "Ponce Navalon, Jose"]
[Result "1-0"]
[Annotator "RC"]
[ECO "E91"]
[WhiteElo "2364"]
[BlackElo "2121"]
[PlyCount "141"]
[EventDate "2025.04.15"]
[EventType "swiss"]
[EventCountry "ESP"]
[SourceTitle "playchess.com"]
[Source "ChessBase"]
[SourceQuality "1"]
[TimeControl "5400+30"]

1. Nf3 {[%emt 0:00:20]} Nf6 {[%emt 0:00:20]} 2. c4 {[%emt 0:00:07]} d6 {[%emt 0:00:49]} 3. d4 {[%emt 0:00:12]} g6 {[%emt 0:00:33]} 4. Nc3 {[%emt 0:00:14]} Bg7 {[%emt 0:00:06]} 5. e4 {[%emt 0:00:07]} O-O {[%emt 0:01:29]} 6. Be2 {[%emt 0:00:08]} Nc6 {[%emt 0:07:10]} 7. O-O {[%emt 0:06:34]} Bg4 {[%emt 0:04:20]} 8. d5 {[%emt 0:01:14]} Bxf3 {[%emt 0:09:32]} 9. Bxf3 {[%emt 0:00:34]} Na5 {[%emt 0:01:57]} 10. Be2 {[%emt 0:00:25]} c5 {[%emt 0:01:43]} 11. Rb1 {[%emt 0:04:01]} a6 {[%emt 0:04:14]} 12. Qc2 {[%emt 0:01:50]} Nd7 {[%emt 0:01:17]} 13. Be3 {[%emt 0:04:56]} e5 {[%emt 0:09:02]} 14. b3 {[%emt 0:02:14]} b6 {[%emt 0:00:27]} 15. Bd3 {[%emt 0:01:20]} Nb7 {[%emt 0:01:06]} 16. a3 {[%emt 0:00:25]} Qe7 {[%emt 0:00:11]} 17. Rbe1 {[%emt 0:01:26]} f6 {[%emt 0:05:13]} 18. Kh1 {[%emt 0:02:02]} Rf7 {[%emt 0:00:34]} 19. g3 {[%emt 0:00:49]} Qf8 {[%emt 0:00:09]} 20. Bd2 {[%emt 0:05:06]} Kh8 {[%emt 0:11:27]} 21. Qc1 {[%emt 0:03:40]} Re8 {[%emt 0:01:27]} 22. f3 {[%emt 0:00:36]} h5 {[%emt 0:00:15]} 23. f4 {[%emt 0:02:12]} Bh6 {[%emt 0:00:48]} 24. Qd1 {[%emt 0:01:48]} Rh7 {[%emt 0:02:28]} 25. Bc1 {[%emt 0:01:47]} h4 {[%emt 0:01:27]} 26. f5 {[%emt 0:05:18]} gxf5 {[%emt 0:01:31]} 27. gxh4 {[%emt 0:06:37]} Bxc1 {[%emt 0:02:10]} 28. Qxc1 {[%emt 0:00:02]} f4 {[%emt 0:00:35]} 29. Rg1 {[%emt 0:00:06]} Rxh4 {[%emt 0:04:48]} 30. Rg6 {[%emt 0:00:23]} Re7 {[%emt 0:28:22]} 31. Reg1 {[%emt 0:00:34]} Reh7 {[%emt 0:00:00]} 32. Qd2 {[%emt 0:00:52]} Qf7 {[%emt 0:00:00]} 33. R6g2 {[%emt 0:01:12]} Nf8 {[%emt 0:00:00]} 34. Be2 {[%emt 0:01:30]} Ng6 {[%emt 0:00:00]} 35. Bf3 {[%emt 0:02:02]} Na5 {[%emt 0:00:00]} 36. Qc2 {[%emt 0:03:41]} R7h6 {[%emt 0:00:00]} 37. Rf2 {[%emt 0:01:31]} Rh3 {[%emt 0:00:00]} 38. Bg4 {[%emt 0:00:27]} R3h4 {[%emt 0:00:00]} 39. Be6 {[%emt 0:02:55]} Qf8 {[%emt 0:00:00]} 40. Rfg2 {[%emt 0:02:53]} Ne7 {[%emt 0:00:00]} 41. Nd1 {[%emt 0:00:11]} R6h5 {[%emt 0:00:00]} 42. b4 {[%emt 0:00:39]} Nb7 {[%emt 0:00:00]} 43. Bg4 {[%emt 0:03:37]} Rg5 {[%emt 0:00:00]} 44. Nf2 {[%emt 0:00:57]} a5 {[%emt 0:00:05]} 45. bxa5 {[%emt 0:00:33]} Nxa5 {[%emt 0:00:05]} 46. Qa4 {[%emt 0:00:21]} Ng8 {[%emt 0:00:36]} 47. Be6 {[%emt 0:00:32]} Rhh5 {[%emt 0:04:40]} 48. Qd1 {[%emt 0:08:25]} Qh6 {[%emt 0:00:54]} 49. Ng4 {[%emt 0:01:30]} Rxg4 {[%emt 0:02:31]} 50. Bxg4 {[%emt 0:01:23]} Rg5 {[%emt 0:00:16]} 51. Qa4 {[%emt 0:00:23]} Qg7 {[%emt 0:00:45]} 52. Be6 {[%emt 0:01:03]} f3 {[%emt 0:00:19]} 53. Rxg5 {[%emt 0:00:07]} fxg5 {[%emt 0:00:15]} 54. Qe8 {[%emt 0:00:30]} f2 {[%emt 0:00:48]} 55. Rf1 {[%emt 0:00:10]} Qh7 {[%emt 0:00:36]} 56. Qxg8+ {[%emt 0:04:37]} Qxg8 {[%emt 0:00:06]} 57. Bxg8 {[%emt 0:00:05]} Kxg8 {[%emt 0:00:02]} 58. Rxf2 {[%emt 0:00:09]} Nxc4 {[%emt 0:00:10]} 59. a4 {[%emt 0:00:01]} Kg7 {[%emt 0:00:20]} 60. Kg2 {[%emt 0:00:36]} Kg6 {[%emt 0:01:55]} 61. Kf3 {[%emt 0:00:45]} Kf6 {[%emt 0:00:13]} 62. Ke2+ {[%emt 0:00:13]} Ke7 {[%emt 0:00:06]} 63. Kd3 {[%emt 0:00:04]} Na5 {[%emt 0:01:02]} 64. Rf5 {[%emt 0:01:24]} c4+ {[%emt 0:00:22]} 65. Kc3 {[%emt 0:00:03]} Nb3 {[%emt 0:00:08]} 66. Rxg5 {[%emt 0:01:20]} Nc5 {[%emt 0:00:06]} 67. Rg4 {[%emt 0:00:07]} Nxa4+ {[%emt 0:00:18]} 68. Kxc4 {[%emt 0:00:06]} Nb2+ {[%emt 0:01:06]} 69. Kb5 {[%emt 0:00:48]} Nd1 {[%emt 0:00:17]} 70. Rg7+ {[%emt 0:02:11]} Kf6 {[%emt 0:00:07]} 71. Rg3 {[%emt 0:00:10]} 1-0

[Event "51st La Roda Open 2025"]
[Site "La Roda"]
[Date "2025.04.16"]
[Round "3.10"]
[White "Perez Travieso, Saul"]
[Black "Sierra Vallina, Lionel"]
[Result "1/2-1/2"]
[Annotator "RC"]
[ECO "D37"]
[WhiteElo "2111"]
[BlackElo "2342"]
[PlyCount "97"]
[EventDate "2025.04.15"]
[EventType "swiss"]
[EventCountry "ESP"]
[SourceTitle "playchess.com"]
[Source "ChessBase"]
[SourceQuality "1"]
[TimeControl "5400+30"]

1. c4 {[%emt 0:00:06]} e6 {[%emt 0:00:17]} 2. d4 {[%emt 0:00:09]} Nf6 {[%emt 0:00:08]} 3. Nf3 {[%emt 0:00:06]} a6 {[%emt 0:00:05]} 4. Nc3 {[%emt 0:01:07]} d5 {[%emt 0:00:14]} 5. cxd5 {[%emt 0:00:05]} exd5 {[%emt 0:00:08]} 6. Bf4 {[%emt 0:01:07]} Bd6 {[%emt 0:01:18]} 7. Bxd6 {[%emt 0:03:38]} Qxd6 {[%emt 0:00:08]} 8. Qb3 {[%emt 0:01:09]} O-O {[%emt 0:04:04]} 9. e3 {[%emt 0:00:05]} Nc6 {[%emt 0:02:54]} 10. Bd3 {[%emt 0:02:29]} Ne7 {[%emt 0:08:03]} 11. Qc2 {[%emt 0:11:13]} g6 {[%emt 0:07:53]} 12. O-O {[%emt 0:02:50]} Bf5 {[%emt 0:00:08]} 13. Rfc1 {[%emt 0:01:58]} c6 {[%emt 0:18:10]} 14. Rab1 {[%emt 0:12:09]} a5 {[%emt 0:06:32]} 15. Bxf5 {[%emt 0:02:20]} Nxf5 {[%emt 0:00:13]} 16. Na4 {[%emt 0:01:32]} Qe7 {[%emt 0:06:32]} 17. a3 {[%emt 0:02:35]} Nd6 {[%emt 0:02:11]} 18. Nc5 {[%emt 0:08:26]} Nd7 {[%emt 0:04:24]} 19. b3 {[%emt 0:16:44]} h5 {[%emt 0:01:34]} 20. Qd3 {[%emt 0:01:11]} Rfe8 {[%emt 0:01:10]} 21. b4 {[%emt 0:01:41]} axb4 {[%emt 0:01:12]} 22. axb4 {[%emt 0:04:00]} Ra7 {[%emt 0:10:50]} 23. Ra1 {[%emt 0:03:32]} Rea8 {[%emt 0:00:05]} 24. Qc3 {[%emt 0:02:21]} Nxc5 {[%emt 0:08:31]} 25. bxc5 {[%emt 0:00:14]} Nb5 {[%emt 0:00:05]} 26. Rxa7 {[%emt 0:02:08]} Rxa7 {[%emt 0:00:09]} 27. Qc2 {[%emt 0:00:44]} Qe8 {[%emt 0:01:25]} 28. Ne5 {[%emt 0:03:36]} Kg7 {[%emt 0:00:27]} 29. Qd1 {[%emt 0:08:37]} Ra2 {[%emt 0:03:45]} 30. Qf3 {[%emt 0:01:20]} Nc3 {[%emt 0:01:30]} 31. Rf1 {[%emt 0:02:29]} Ne4 {[%emt 0:01:14]} 32. Qh3 {[%emt 0:00:35]} Nxc5 {[%emt 0:06:26]} 33. Nxg6 {[%emt 0:01:02]} fxg6 {[%emt 0:00:05]} 34. dxc5 {[%emt 0:00:04]} Rc2 {[%emt 0:01:22]} 35. Qh4 {[%emt 0:02:24]} Rc4 {[%emt 0:00:15]} 36. Qg3 {[%emt 0:00:23]} Rxc5 {[%emt 0:00:53]} 37. Qc7+ {[%emt 0:00:14]} Qf7 {[%emt 0:00:11]} 38. Qe5+ {[%emt 0:00:05]} Kh7 {[%emt 0:00:20]} 39. f4 {[%emt 0:00:28]} Qg7 {[%emt 0:03:20]} 40. Qe6 {[%emt 0:01:14]} d4 {[%emt 0:00:12]} 41. e4 {[%emt 0:00:02]} d3 {[%emt 0:01:11]} 42. f5 {[%emt 0:00:02]} gxf5 {[%emt 0:00:13]} 43. exf5 {[%emt 0:00:44]} Re5 {[%emt 0:00:09]} 44. Qd6 {[%emt 0:01:30]} Rd5 {[%emt 0:00:11]} 45. Qe6 {[%emt 0:00:16]} Re5 {[%emt 0:01:10]} 46. Qd6 {[%emt 0:00:13]} Rd5 {[%emt 0:01:00]} 47. Qe6 {[%emt 0:00:04]} Re5 {[%emt 0:00:10]} 48. Qd6 {[%emt 0:00:05]} Rd5 {[%emt 0:01:14]} 49. Qe6 {[%emt 0:03:54]} 1/2-1/2

[Event "51st La Roda Open 2025"]
[Site "La Roda"]
[Date "2025.04.16"]
[Round "3.11"]
[White "Centron Antuna, Daniel"]
[Black "Cano Mateos, Pablo"]
[Result "1-0"]
[Annotator "RC"]
[ECO "C11"]
[WhiteElo "2299"]
[BlackElo "2086"]
[PlyCount "65"]
[EventDate "2025.04.15"]
[EventType "swiss"]
[EventCountry "ESP"]
[SourceTitle "playchess.com"]
[Source "ChessBase"]
[SourceQuality "1"]
[TimeControl "5400+30"]

1. e4 {[%emt 0:00:03]} e6 {[%emt 0:00:03]} 2. d4 {[%emt 0:00:06]} d5 {[%emt 0:00:05]} 3. Nc3 {[%emt 0:00:09]} Nf6 {[%emt 0:00:05]} 4. e5 {[%emt 0:00:07]} Nfd7 {[%emt 0:00:06]} 5. f4 {[%emt 0:00:06]} c5 {[%emt 0:00:04]} 6. Nf3 {[%emt 0:00:06]} Nc6 {[%emt 0:00:06]} 7. Be3 {[%emt 0:00:07]} a6 {[%emt 0:00:17]} 8. Qd2 {[%emt 0:00:31]} Be7 {[%emt 0:00:24]} 9. dxc5 {[%emt 0:01:34]} Nxc5 {[%emt 0:00:34]} 10. O-O-O {[%emt 0:00:27]} b5 {[%emt 0:01:45]} 11. Qf2 {[%emt 0:08:04]} Na4 {[%emt 0:01:10]} 12. Nxa4 {[%emt 0:09:15]} bxa4 {[%emt 0:00:05]} 13. Bb6 {[%emt 0:02:37]} Qd7 {[%emt 0:00:10]} 14. Bc5 {[%emt 0:00:29]} Rb8 {[%emt 0:09:47]} 15. c3 {[%emt 0:14:51]} Qc7 {[%emt 0:04:58]} 16. Bxe7 {[%emt 0:03:54]} Nxe7 {[%emt 0:00:40]} 17. Qc2 {[%emt 0:00:49]} Qa5 {[%emt 0:01:23]} 18. Nd4 {[%emt 0:01:11]} Bd7 {[%emt 0:02:20]} 19. a3 {[%emt 0:07:01]} Nc6 {[%emt 0:11:40]} 20. Nxc6 {[%emt 0:01:29]} Bxc6 {[%emt 0:00:07]} 21. Rd4 {[%emt 0:00:23]} g6 {[%emt 0:19:00]} 22. g4 {[%emt 0:02:47]} Bb5 {[%emt 0:06:45]} 23. Bxb5+ {[%emt 0:04:31]} axb5 {[%emt 0:00:07]} 24. f5 {[%emt 0:00:11]} Qc7 {[%emt 0:00:52]} 25. Re1 {[%emt 0:05:09]} Kd7 {[%emt 0:01:02]} 26. Rf4 {[%emt 0:03:04]} Rhf8 {[%emt 0:01:41]} 27. Qf2 {[%emt 0:01:09]} Qd8 {[%emt 0:02:06]} 28. Rf1 {[%emt 0:02:10]} Qb6 {[%emt 0:03:27]} 29. fxe6+ {[%emt 0:01:26]} Ke8 {[%emt 0:06:59]} 30. e7 {[%emt 0:02:05]} Rg8 {[%emt 0:01:02]} 31. Qxb6 {[%emt 0:00:23]} Rxb6 {[%emt 0:01:00]} 32. Rxf7 {[%emt 0:00:07]} Rb8 {[%emt 0:00:04]} 33. Rxh7 {[%emt 0:30:39]} 1-0

[Event "51st La Roda Open 2025"]
[Site "La Roda"]
[Date "2025.04.16"]
[Round "3.12"]
[White "Mafra, Kaiser Luiz"]
[Black "Gonzalez Castillo, Jose Javier"]
[Result "0-1"]
[Annotator "RC"]
[ECO "C00"]
[WhiteElo "2098"]
[BlackElo "2297"]
[PlyCount "82"]
[EventDate "2025.04.15"]
[EventType "swiss"]
[EventCountry "ESP"]
[SourceTitle "playchess.com"]
[Source "ChessBase"]
[SourceQuality "1"]
[TimeControl "5400+30"]

1. e4 {[%emt 0:00:11]} c5 {[%emt 0:01:36]} 2. Nf3 {[%emt 0:00:07]} e6 {[%emt 0:00:03]} 3. b4 {[%emt 0:00:08]} cxb4 {[%emt 0:03:03]} 4. a3 {[%emt 0:00:11]} d5 {[%emt 0:08:23]} 5. e5 {[%emt 0:01:26]} b3 {[%emt 0:00:25]} 6. cxb3 {[%emt 0:00:07]} Nc6 {[%emt 0:00:03]} 7. b4 {[%emt 0:00:35]} a6 {[%emt 0:01:36]} 8. g3 {[%emt 0:01:00]} Nge7 {[%emt 0:02:04]} 9. Bg2 {[%emt 0:01:00]} Nf5 {[%emt 0:00:20]} 10. O-O {[%emt 0:02:18]} Bd7 {[%emt 0:00:40]} 11. Nc3 {[%emt 0:02:50]} h5 {[%emt 0:02:23]} 12. h4 {[%emt 0:02:10]} Qb6 {[%emt 0:01:02]} 13. Na4 {[%emt 0:07:12]} Qa7 {[%emt 0:01:00]} 14. Kh2 {[%emt 0:01:14]} a5 {[%emt 0:08:57]} 15. Bb2 {[%emt 0:01:40]} Ncd4 {[%emt 0:01:05]} 16. Nxd4 {[%emt 0:05:21]} Nxd4 {[%emt 0:00:03]} 17. Nc5 {[%emt 0:01:24]} Bxc5 {[%emt 0:01:48]} 18. bxc5 {[%emt 0:02:32]} Qxc5 {[%emt 0:00:40]} 19. Rc1 {[%emt 0:14:45]} Qb6 {[%emt 0:01:51]} 20. Bxd4 {[%emt 0:05:48]} Qxd4 {[%emt 0:00:03]} 21. Rc7 {[%emt 0:00:08]} Qb6 {[%emt 0:09:46]} 22. Rc3 {[%emt 0:02:27]} a4 {[%emt 0:03:31]} 23. Qf3 {[%emt 0:04:36]} Rc8 {[%emt 0:04:02]} 24. Rxc8+ {[%emt 0:05:40]} Bxc8 {[%emt 0:00:03]} 25. Qf4 {[%emt 0:00:31]} Bd7 {[%emt 0:01:43]} 26. Rc1 {[%emt 0:08:11]} O-O {[%emt 0:01:10]} 27. f3 {[%emt 0:03:20]} Bc6 {[%emt 0:03:40]} 28. Qg5 {[%emt 0:01:14]} Qb2 {[%emt 0:02:12]} 29. Re1 {[%emt 0:05:10]} Qxa3 {[%emt 0:01:52]} 30. g4 {[%emt 0:01:35]} Qd3 {[%emt 0:08:41]} 31. gxh5 {[%emt 0:01:16]} Qf5 {[%emt 0:00:30]} 32. Qe7 {[%emt 0:06:44]} Qf4+ {[%emt 0:01:58]} 33. Kh1 {[%emt 0:02:00]} Qxd2 {[%emt 0:01:03]} 34. Rg1 {[%emt 0:00:16]} d4 {[%emt 0:00:07]} 35. f4 {[%emt 0:02:15]} Bxg2+ {[%emt 0:02:16]} 36. Rxg2 {[%emt 0:00:03]} Qxf4 {[%emt 0:00:30]} 37. Rg5 {[%emt 0:02:32]} Qxh4+ {[%emt 0:01:00]} 38. Kg1 {[%emt 0:00:18]} Qe1+ {[%emt 0:00:21]} 39. Kg2 {[%emt 0:00:10]} Qe4+ {[%emt 0:00:54]} 40. Kh2 {[%emt 0:00:29]} Qf4+ {[%emt 0:00:08]} 41. Kh1 {[%emt 0:00:39]} Rc8 {[%emt 0:00:41]} 0-1

[Event "51st La Roda Open 2025"]
[Site "La Roda"]
[Date "2025.04.16"]
[Round "3.13"]
[White "Gomez Falagan, Daniel"]
[Black "Burriel Ureta, Raul"]
[Result "1-0"]
[Annotator "RC"]
[ECO "D35"]
[WhiteElo "2254"]
[BlackElo "1948"]
[PlyCount "51"]
[EventDate "2025.04.15"]
[EventType "swiss"]
[EventCountry "ESP"]
[SourceTitle "playchess.com"]
[Source "ChessBase"]
[SourceQuality "1"]
[TimeControl "5400+30"]

1. d4 {[%emt 0:00:03]} Nf6 {[%emt 0:00:02]} 2. c4 {[%emt 0:00:10]} e6 {[%emt 0:00:04]} 3. Nc3 {[%emt 0:00:08]} d5 {[%emt 0:00:05]} 4. cxd5 {[%emt 0:00:08]} exd5 {[%emt 0:00:01]} 5. Bg5 {[%emt 0:00:10]} c6 {[%emt 0:00:18]} 6. e3 {[%emt 0:00:09]} h6 {[%emt 0:01:01]} 7. Bh4 {[%emt 0:00:09]} Be6 {[%emt 0:00:15]} 8. Bd3 {[%emt 0:00:21]} Nbd7 {[%emt 0:00:16]} 9. h3 {[%emt 0:01:22]} Bd6 {[%emt 0:12:01]} 10. Nge2 {[%emt 0:00:46]} g5 {[%emt 0:08:10]} 11. Bg3 {[%emt 0:00:47]} Nb6 {[%emt 0:03:19]} 12. Qc2 {[%emt 0:04:56]} Nh5 {[%emt 0:02:40]} 13. Bxd6 {[%emt 0:03:11]} Qxd6 {[%emt 0:00:02]} 14. O-O-O {[%emt 0:02:21]} Nd7 {[%emt 0:19:32]} 15. Kb1 {[%emt 0:04:14]} b5 {[%emt 0:03:55]} 16. h4 {[%emt 0:08:51]} g4 {[%emt 0:00:42]} 17. e4 {[%emt 0:01:27]} Nb6 {[%emt 0:02:58]} 18. e5 {[%emt 0:02:05]} Qe7 {[%emt 0:01:00]} 19. f4 {[%emt 0:01:16]} a5 {[%emt 0:03:01]} 20. f5 {[%emt 0:01:02]} Bc8 {[%emt 0:00:02]} 21. Nxb5 {[%emt 0:02:02]} cxb5 {[%emt 0:01:03]} 22. Qc6+ {[%emt 0:00:05]} Bd7 {[%emt 0:00:25]} 23. Qxb6 {[%emt 0:00:07]} O-O {[%emt 0:00:41]} 24. Qxh6 {[%emt 0:00:24]} f6 {[%emt 0:02:37]} 25. Qxh5 {[%emt 0:00:09]} Qg7 {[%emt 0:00:44]} 26. Qg6 {[%emt 0:00:08]} 1-0

[Event "51st La Roda Open 2025"]
[Site "La Roda"]
[Date "2025.04.16"]
[Round "3.14"]
[White "Aishwin Daniel"]
[Black "Vinals Rioja, Jaume"]
[Result "1/2-1/2"]
[Annotator "RC"]
[ECO "B76"]
[WhiteElo "2236"]
[BlackElo "1928"]
[PlyCount "96"]
[EventDate "2025.04.15"]
[EventType "swiss"]
[EventCountry "ESP"]
[SourceTitle "playchess.com"]
[Source "ChessBase"]
[SourceQuality "1"]
[TimeControl "5400+30"]

1. e4 {[%emt 0:00:46]} c5 {[%emt 0:00:03]} 2. Nf3 {[%emt 0:00:40]} d6 {[%emt 0:00:26]} 3. d4 {[%emt 0:00:04]} cxd4 {[%emt 0:00:09]} 4. Nxd4 {[%emt 0:00:05]} Nf6 {[%emt 0:00:11]} 5. Nc3 {[%emt 0:00:04]} g6 {[%emt 0:00:10]} 6. f3 {[%emt 0:00:47]} Bg7 {[%emt 0:00:12]} 7. Be3 {[%emt 0:00:29]} O-O {[%emt 0:00:13]} 8. Qd2 {[%emt 0:00:26]} Nc6 {[%emt 0:00:10]} 9. O-O-O {[%emt 0:00:57]} d5 {[%emt 0:00:10]} 10. exd5 {[%emt 0:00:51]} Nxd5 {[%emt 0:00:12]} 11. Nxc6 {[%emt 0:00:17]} bxc6 {[%emt 0:00:08]} 12. Bd4 {[%emt 0:00:47]} Bxd4 {[%emt 0:00:14]} 13. Qxd4 {[%emt 0:00:38]} Qb6 {[%emt 0:00:11]} 14. Qe5 {[%emt 0:06:18]} Nxc3 {[%emt 0:07:23]} 15. Qxc3 {[%emt 0:00:37]} Be6 {[%emt 0:00:47]} 16. a3 {[%emt 0:02:26]} Rfd8 {[%emt 0:01:19]} 17. Re1 {[%emt 0:01:21]} Qd4 {[%emt 0:03:06]} 18. Qxd4 {[%emt 0:00:15]} Rxd4 {[%emt 0:00:09]} 19. Re5 {[%emt 0:02:43]} Rad8 {[%emt 0:03:49]} 20. Bd3 {[%emt 0:01:51]} R4d5 {[%emt 0:07:46]} 21. Rhe1 {[%emt 0:02:25]} Rxe5 {[%emt 0:00:31]} 22. Rxe5 {[%emt 0:00:09]} Kf8 {[%emt 0:00:20]} 23. Rc5 {[%emt 0:05:39]} Bd5 {[%emt 0:03:51]} 24. Ba6 {[%emt 0:03:23]} Rd6 {[%emt 0:21:17]} 25. Bb7 {[%emt 0:04:07]} h5 {[%emt 0:00:41]} 26. c4 {[%emt 0:01:50]} Be6 {[%emt 0:00:21]} 27. Bxc6 {[%emt 0:00:55]} h4 {[%emt 0:00:31]} 28. Bd5 {[%emt 0:05:12]} h3 {[%emt 0:00:53]} 29. gxh3 {[%emt 0:00:56]} Bxh3 {[%emt 0:00:27]} 30. a4 {[%emt 0:10:23]} e6 {[%emt 0:03:32]} 31. Bb7 {[%emt 0:01:11]} Rd7 {[%emt 0:02:38]} 32. Ba8 {[%emt 0:02:18]} Bg2 {[%emt 0:01:15]} 33. a5 {[%emt 0:02:04]} Ke7 {[%emt 0:07:40]} 34. b4 {[%emt 0:02:42]} Kd6 {[%emt 0:04:11]} 35. Rg5 {[%emt 0:09:31]} Bf1 {[%emt 0:03:17]} 36. c5+ {[%emt 0:00:49]} Kc7 {[%emt 0:00:14]} 37. Rg1 {[%emt 0:00:47]} Be2 {[%emt 0:01:38]} 38. Rg2 {[%emt 0:02:32]} Bb5 {[%emt 0:00:22]} 39. Rd2 {[%emt 0:01:31]} Re7 {[%emt 0:00:51]} 40. Rd6 {[%emt 0:06:11]} Re8 {[%emt 0:06:08]} 41. Be4 {[%emt 0:01:02]} Rh8 {[%emt 0:04:17]} 42. Bd3 {[%emt 0:03:07]} Bxd3 {[%emt 0:00:46]} 43. Rxd3 {[%emt 0:00:04]} Rxh2 {[%emt 0:00:10]} 44. b5 {[%emt 0:21:20]} Rh5 {[%emt 0:08:14]} 45. Rc3 {[%emt 0:00:00]} a6 {[%emt 0:00:28]} 46. b6+ {[%emt 0:00:00]} Kc6 {[%emt 0:00:11]} 47. Kd2 {[%emt 0:00:00]} Rh2+ {[%emt 0:00:48]} 48. Kd3 {[%emt 0:02:00]} Rb2 {[%emt 0:12:10]} 1/2-1/2

[Event "51st La Roda Open 2025"]
[Site "La Roda"]
[Date "2025.04.16"]
[Round "3.15"]
[White "Nomindalai Tumurbaatar"]
[Black "Arroyo Rodriguez, Jesus"]
[Result "1-0"]
[Annotator "RC"]
[ECO "A53"]
[WhiteElo "2211"]
[BlackElo "1954"]
[PlyCount "115"]
[EventDate "2025.04.15"]
[EventType "swiss"]
[EventCountry "ESP"]
[SourceTitle "playchess.com"]
[Source "ChessBase"]
[SourceQuality "1"]
[TimeControl "5400+30"]

1. d4 {[%emt 0:01:35]} Nf6 {[%emt 0:11:22]} 2. c4 {[%emt 0:00:16]} d6 {[%emt 0:00:12]} 3. Nc3 {[%emt 0:01:13]} e5 {[%emt 0:00:10]} 4. d5 {[%emt 0:00:24]} Nbd7 {[%emt 0:00:09]} 5. e4 {[%emt 0:00:30]} Nc5 {[%emt 0:00:06]} 6. Bd3 {[%emt 0:00:08]} a5 {[%emt 0:00:07]} 7. Nge2 {[%emt 0:00:36]} Be7 {[%emt 0:00:52]} 8. O-O {[%emt 0:00:49]} c6 {[%emt 0:02:23]} 9. Kh1 {[%emt 0:04:51]} a4 {[%emt 0:00:11]} 10. Be3 {[%emt 0:01:10]} Nfd7 {[%emt 0:00:02]} 11. Bc2 {[%emt 0:01:23]} Qa5 {[%emt 0:01:17]} 12. Rb1 {[%emt 0:00:35]} h6 {[%emt 0:04:13]} 13. b4 {[%emt 0:05:41]} axb3 {[%emt 0:00:03]} 14. axb3 {[%emt 0:00:04]} Qd8 {[%emt 0:15:59]} 15. b4 {[%emt 0:11:22]} Na6 {[%emt 0:00:09]} 16. Ra1 {[%emt 0:00:16]} c5 {[%emt 0:14:20]} 17. bxc5 {[%emt 0:04:46]} Ndxc5 {[%emt 0:00:47]} 18. Bxc5 {[%emt 0:18:38]} dxc5 {[%emt 0:02:59]} 19. f4 {[%emt 0:04:32]} Bf6 {[%emt 0:05:01]} 20. Ba4+ {[%emt 0:01:31]} Kf8 {[%emt 0:03:14]} 21. Qd3 {[%emt 0:14:02]} Bg4 {[%emt 0:05:18]} 22. Qg3 {[%emt 0:17:46]} Bxe2 {[%emt 0:02:08]} 23. Nxe2 {[%emt 0:00:06]} Qd6 {[%emt 0:01:51]} 24. Bb5 {[%emt 0:03:07]} Kg8 {[%emt 0:10:24]} 25. f5 {[%emt 0:03:32]} Kh7 {[%emt 0:00:45]} 26. Qc3 {[%emt 0:03:13]} Nc7 {[%emt 0:02:23]} 27. Qb2 {[%emt 0:00:24]} Rhb8 {[%emt 0:05:10]} 28. Kg1 {[%emt 0:01:12]} Na6 {[%emt 0:01:14]} 29. Rf3 {[%emt 0:00:04]} Nb4 {[%emt 0:01:06]} 30. Rfa3 {[%emt 0:00:09]} Qd8 {[%emt 0:01:56]} 31. Kf1 {[%emt 0:01:08]} Rxa3 {[%emt 0:01:24]} 32. Rxa3 {[%emt 0:00:05]} Ra8 {[%emt 0:00:56]} 33. Nc3 {[%emt 0:00:35]} Rxa3 {[%emt 0:02:21]} 34. Qxa3 {[%emt 0:00:07]} Bg5 {[%emt 0:00:50]} 35. Ke2 {[%emt 0:01:36]} Be3 {[%emt 0:00:22]} 36. Nd1 {[%emt 0:00:24]} Bd4 {[%emt 0:00:15]} 37. Qg3 {[%emt 0:00:39]} Qa5 {[%emt 0:00:35]} 38. Qb3 {[%emt 0:00:11]} Na2 {[%emt 0:01:57]} 39. Qc2 {[%emt 0:00:48]} Nb4 {[%emt 0:02:28]} 40. Qa4 {[%emt 0:00:30]} Qd8 {[%emt 0:00:19]} 41. Qb3 {[%emt 0:00:31]} Qg5 {[%emt 0:02:31]} 42. Qf3 {[%emt 0:00:08]} Nc2 {[%emt 0:00:49]} 43. d6 {[%emt 0:00:46]} Ba1 {[%emt 0:00:42]} 44. Kf1 {[%emt 0:00:36]} Qd2 {[%emt 0:00:31]} 45. Qe2 {[%emt 0:00:25]} Qf4+ {[%emt 0:00:29]} 46. Kg1 {[%emt 0:00:21]} Nd4 {[%emt 0:00:33]} 47. Qf1 {[%emt 0:00:29]} Qd2 {[%emt 0:00:24]} 48. Be8 {[%emt 0:00:43]} Ne2+ {[%emt 0:00:39]} 49. Kh1 {[%emt 0:00:07]} Bd4 {[%emt 0:00:30]} 50. d7 {[%emt 0:00:22]} Ng3+ 51. hxg3 {[%emt 0:00:06]} Qg5 {[%emt 0:00:54]} 52. Nf2 {[%emt 0:00:12]} Bxf2 {[%emt 0:00:33]} 53. Qxf2 {[%emt 0:00:06]} Qh5+ {[%emt 0:00:05]} 54. Kg1 {[%emt 0:00:05]} Qd1+ {[%emt 0:00:11]} 55. Qf1 {[%emt 0:00:05]} Qd2 {[%emt 0:00:15]} 56. Qa1 {[%emt 0:00:42]} Kg8 {[%emt 0:00:44]} 57. Kh2 {[%emt 0:00:35]} Qg5 {[%emt 0:00:26]} 58. Qd1 {[%emt 0:00:05]} 1-0